[Event "2nd Serbia Open Masters 2022"]
[Site "Novi Sad"]
[Date "2022.06.30"]
[Round "3.36"]
[White "Arpita, Mukherjee"]
[Black "Milikow, Yoav"]
[Result "0-1"]
[ECO "C60"]
[WhiteElo "2275"]
[BlackElo "2410"]
[Annotator "TA"]
[PlyCount "96"]
[EventDate "2022.06.28"]
[EventType "swiss"]
[EventCountry "SRB"]
[SourceTitle "playchess.com"]
[Source "ChessBase"]
[SourceQuality "1"]
[TimeControl "40/5400+30:900+30"]

{[%evp 14,96,24,16,39,29,16,0,11,0,0,0,11,0,0,2,23,0,0,-6,-6,-10,-16,-31,-25,-70,-30,-46,-59,-60,-48,-57,-15,-49,-46,-67,-55,-57,-58,-66,-59,-74,-49,-57,-38,-51,-31,-26,-44,-78,-77,-90,-80,-106,0,-85,-76,-96,-83,-85,-85,-78,-88,-106,-45,-145,-145,-162,-143,-154,-122,-487,-497,-1247,-1240,-1240,-1243,-1154,-1136,-5614,-5614,-2204,-2116,-29988,-29989]} 1. e4 {[%emt 0:01:17]} e5 {[%emt 0:00:06]} 2. Nf3 {[%emt 0:00:07]} Nc6 {[%emt 0:00:05]} 3. Bb5 {[%emt 0:00:13][%cal Bf1b5,Bb5a4,Ba4b3][%mdl 32]} a6 {[%emt 0:00:38]} 4. Ba4 {[%emt 0:00:09]} Nge7 {[%emt 0:00:17]} 5. c3 {[%emt 0:00:21]} g6 {[%emt 0:00:23]} 6. O-O {[%emt 0:00:42]} Bg7 {[%emt 0:00:46]} 7. d4 {[%emt 0:00:09]} exd4 {[%emt 0:00:30]} 8. cxd4 {[%emt 0:00:17]} b5 {[%emt 0:00:21] C60: Ruy Lopez: Unusual Black 3rd moves and 3...g6.} 9. Bb3 {[%emt 0:08:14]} O-O {[%emt 0:00:20]} 10. Nc3 {[%emt 0:03:09] Against d5} Na5 {[%emt 0:00:43] The position is equal.} 11. Bc2 {[%emt 0:00:16]} d6 {[%emt 0:00:21]} 12. h3 {[%emt 0:00:19]} c5 {[%emt 0:00:32]} 13. Bg5 {[%emt 0:04:42]} h6 {[%emt 0:04:13]} 14. Bh4 {[%emt 0:00:40] And now dxc5 would win.} cxd4 {[%emt 0:03:04]} 15. Nxd4 {[%emt 0:03:12]} Bb7 {[%emt 0:14:30]} 16. Nd5 {[%emt 0:13:00]} Bxd5 {[%emt 0:01:29]} ({But not} 16... g5 17. Nxe7+ Qxe7 18. Nf5 $16) 17. exd5 {[%emt 0:00:08]} Qd7 {[%emt 0:01:54] [#]} 18. a4 $146 {[%emt 0:14:45]} ({Predecessor:} 18. Bxe7 Qxe7 19. Nc6 Nxc6 20. dxc6 Bxb2 21. Rb1 Bf6 22. Re1 Qc7 23. Qd5 Rac8 24. Be4 {½-½ (40) Kudelya,I (2239)-Rjabzev,K (2290) Voronezh 2013}) 18... b4 {[%emt 0:09:16]} 19. Qd2 {[%emt 0:06:09]} Rac8 {[%emt 0:06:26] Hoping for ...Bxd4.} (19... Nc4 $5 {[%cal Rc4d2]} 20. Qe2 (20. Qxb4 Rfc8 $17) 20... Bxd4 21. Qxc4 Bxb2 $17) 20. Bxe7 {[%emt 0:18:29]} Qxe7 {[%emt 0:00:12]} 21. Nc6 {[%emt 0:00:27]} Nxc6 {[%emt 0:00:22]} 22. dxc6 {[%emt 0:00:02]} Rxc6 {[%emt 0:02:02]} (22... Bxb2 {is interesting.} 23. Rae1 Be5 24. Bb3 Rxc6 25. Qxh6 Qf6) 23. Bb3 {[%emt 0:00:13]} a5 {[%emt 0:01:55]} 24. Rac1 {[%emt 0:00:12]} Rc5 {[%emt 0:01:35]} 25. Rcd1 {[%emt 0:06:43]} Rd8 {[%emt 0:01:48]} 26. Rfe1 {[%emt 0:06:47] Prevents Qe5.} Qf6 {[%emt 0:02:10] Black is more active.} 27. Qe3 {[%emt 0:00:55]} Rf8 {[%emt 0:07:17]} (27... Rdc8 $5 {[%cal Rf6b2]} 28. Qe7 Qxe7 29. Rxe7 Rc1 30. Rxc1 (30. Bxf7+ $2 Kf8 $19) 30... Rxc1+ 31. Kh2 Bxb2 32. Rxf7 Ra1 $15) 28. Re2 {[%emt 0:02:27]} Re5 {[%emt 0:02:00]} 29. Qd3 {[%emt 0:00:27]} Rfe8 {[%emt 0:00:56][%cal Bf8e8,Be8e5,Be5f5][%mdl 32]} 30. Rxe5 {[%emt 0:00:32]} Rxe5 {[%emt 0:00:16]} 31. Qc4 {[%emt 0:03:50]} h5 {[%emt 0:02:56]} 32. Kf1 {[%emt 0:01:56]} Rf5 {[%emt 0:01:40]} 33. Qe2 {[%emt 0:00:46]} Re5 {[%emt 0:02:17]} 34. Qc4 {[%emt 0:00:03]} Qe7 {[%emt 0:02:06]} 35. Qd3 {[%emt 0:03:02][%csl LRd6,LRg6]} Kh7 {[%emt 0:00:59]} 36. Bd5 {[%emt 0:00:47]} Rf5 {[%emt 0:01:20]} 37. b3 {[%emt 0:02:03]} Qh4 $40 {[%emt 0:02:01][%csl Gf5][%cal Rh4f2][%mdl 128] Black attacks with force.} 38. Bf3 {[%emt 0:00:30]} Qf4 {[%emt 0:05:07]} (38... d5 $17 39. Kg1 Bc3) 39. Kg1 {[%emt 0:00:24] [#]} ({Better is} 39. Qxd6 $15 Re5 40. Rd5) 39... Be5 $1 $17 {[%emt 0:00:15]} 40. Qe4 {[%emt 0:00:00]} Qh2+ {[%emt 0:00:00]} 41. Kf1 {[%emt 0:01:34]} Bc3 {[%emt 0:01:35] White must now prevent ...Re5.} 42. Qb7 $2 {[%emt 0:03:41][%mdl 8192] This move loses the game for White.} (42. Qh4 $17 {is a better chance.}) 42... Kg7 $19 {[%emt 0:01:59]} 43. Qd7 {[%emt 0:09:45]} (43. Qa6 $142) 43... Qh1+ {[%emt 0:03:05]} 44. Ke2 {[%emt 0:00:02]} Re5+ {[%emt 0:00:06]} 45. Kd3 {[%emt 0:00:05] [#]} Rd5+ $3 {[%emt 0:00:11][%mdl 512]} 46. Kc2 {[%emt 0:00:03]} (46. Kc4 Rxd1) 46... Rxd1 {[%emt 0:00:11]} 47. Bxd1 {[%emt 0:00:03]} Qe1 {[%emt 0:00:17] ( -> ...Qd2+)} 48. Qxd6 {[%emt 0:00:23]} Qxf2+ {[%emt 0:00:07] Weighted Error Value: White=0.68/Black=0.10 (very precise)} 0-1

[Event "2nd Serbia Open Masters 2022"]
[Site "Novi Sad"]
[Date "2022.06.30"]
[Round "3.37"]
[White "Nareks, Matic"]
[Black "Srbis, Jurica"]
[Result "1/2-1/2"]
[ECO "C54"]
[WhiteElo "2221"]
[BlackElo "2451"]
[Annotator "TA"]
[PlyCount "82"]
[EventDate "2022.06.28"]
[EventType "swiss"]
[EventCountry "SRB"]
[SourceTitle "playchess.com"]
[Source "ChessBase"]
[SourceQuality "1"]
[TimeControl "40/5400+30:900+30"]

{[%evp 13,82,10,10,6,13,0,4,7,18,12,13,13,13,13,12,10,8,12,6,21,26,26,26,26,26,22,26,24,30,16,33,32,25,26,55,8,12,16,11,8,4,0,0,0,0,0,0,0,0,0,0,0,0,0,25,26,27,26,16,0,21,0,26,0,17,0,26,0,26,0,26]} 1. e4 {[%emt 0:00:06]} e5 {[%emt 0:00:25]} 2. Nf3 {[%emt 0:00:06]} Nc6 {[%emt 0:00:08]} 3. Bc4 {[%emt 0:00:08]} Bc5 {[%emt 0:00:38]} 4. O-O {[%emt 0:00:07]} Nf6 {[%emt 0:00:13]} 5. d3 {[%emt 0:00:06]} d6 {[%emt 0:00:16]} 6. c3 {[%emt 0:00:17]} a5 {[%emt 1:31:50]} 7. a4 {[%emt 0:01:10]} O-O {[%emt 0:00:00]} 8. h3 {[%emt 0:03:01] C54: Giuoco Piano: 4 c3 Nf6, main lines with 5 d4 and 5 d3.} h6 {[%emt 0:00:00]} 9. Nbd2 {[%emt 0:05:13]} Ba7 {[%emt 0:00:00]} 10. Re1 {[%emt 0:06:12]} Ne7 {[%emt 0:00:00]} 11. Nf1 {[%emt 0:06:11]} Ng6 {[%emt 0:00:00]} 12. Ng3 {[%emt 0:01:35]} c6 {[%emt 0:00:00]} 13. Bb3 {[%emt 0:01:03]} d5 {[%emt 0:00:00]} 14. exd5 {[%emt 0:05:07]} Nxd5 {[%emt 0:00:00]} 15. d4 {[%emt 0:02:39]} exd4 {[%emt 0:00:00]} 16. Nxd4 {[%emt 0:00:46] [#]} Re8 $146 {[%emt 0:00:00]} ({Predecessor:} 16... Be6 17. Bc2 Bd7 18. Ndf5 Bxf5 19. Nxf5 Qf6 20. Qf3 Rae8 21. Bd2 Ne5 22. Qe4 g6 23. Nxh6+ {0-1 (35) Anand,V (2751)-Karjakin,S (2743) Baku 2021}) 17. Rxe8+ {[%emt 0:03:48]} Qxe8 {[%emt 0:00:00]} 18. Bxd5 {[%emt 0:00:07]} cxd5 {[%emt 0:00:00]} 19. Be3 {[%emt 0:01:01]} Bb8 {[%emt 0:00:00] [#] Threatens to win with ...Bxg3.} 20. Ndf5 {[%emt 0:08:03]} Bxf5 {[%emt 0:00:00]} 21. Nxf5 {[%emt 0:00:06]} Qe5 {[%emt 0:00:00]} 22. Ng3 {[%emt 0:00:52] Active counter play!} Qe6 {[%emt 0:00:00] ...Bxg3 is the strong threat.} 23. Nf1 {[%emt 0:03:38]} Ne5 {[%emt 0:00:00]} 24. Nd2 {[%emt 0:03:48]} (24. Qb3 $14) 24... Bc7 {[%emt 0:00:00]} 25. Qb3 {[%emt 0:03:25]} Qc6 {[%emt 0:00:00]} 26. Bd4 {[%emt 0:04:50]} Re8 {[%emt 0:00:00]} 27. Bxe5 {[%emt 0:02:22]} Rxe5 {[%emt 0:00:00]} 28. Nf3 {[%emt 0:00:20]} Re4 {[%emt 0:00:00]} 29. Nd4 {[%emt 0:08:40]} Qd6 {[%emt 0:00:00] [#] ( -> ...Qh2+)} 30. g3 {[%emt 0:00:08]} Bb6 {[%emt 0:00:58]} 31. Rd1 {[%emt 0:01:24]} h5 {[%emt 0:04:35]} 32. h4 {[%emt 0:03:09]} g6 {[%emt 0:01:20]} 33. Kg2 {[%emt 0:01:24]} Qc5 {[%emt 0:04:17]} 34. Rd2 {[%emt 0:01:51]} Re8 {[%emt 0:01:37]} 35. Nf3 {[%emt 0:02:42]} Rd8 {[%emt 0:00:07]} 36. Nd4 {[%emt 0:01:56]} Re8 {[%emt 0:00:16]} 37. Nf3 {[%emt 0:00:06]} Rd8 {[%emt 0:00:04]} 38. Nd4 {[%emt 0:00:05]} Kg7 {[%emt 0:01:07]} 39. Nf3 {[%emt 0:00:24]} Rd6 {[%emt 0:01:31]} 40. Nd4 {[%emt 0:00:00]} Rd8 {[%emt 0:00:00]} 41. Nf3 {[%emt 0:01:01]} Rd6 {[%emt 0:06:33] Weighted Error Value: White=0.07 (flawless) /Black=0.04 (flawless)} 1/2-1/2

[Event "2nd Serbia Open Masters 2022"]
[Site "Novi Sad"]
[Date "2022.06.30"]
[Round "3.38"]
[White "Sturt, Raven"]
[Black "Palczert, Matyas"]
[Result "1-0"]
[ECO "D39"]
[WhiteElo "2438"]
[BlackElo "2353"]
[Annotator "TA"]
[PlyCount "120"]
[EventDate "2022.06.28"]
[EventType "swiss"]
[EventCountry "SRB"]
[SourceTitle "playchess.com"]
[Source "ChessBase"]
[SourceQuality "1"]
[TimeControl "40/5400+30:900+30"]

{[%evp 25,120,10,18,6,28,16,35,0,0,0,127,134,141,143,220,116,106,104,83,114,96,67,67,65,77,75,66,59,59,59,168,161,160,160,160,149,158,150,148,73,99,76,93,47,116,116,159,127,159,159,159,159,159,159,159,159,159,159,159,77,131,77,77,70,70,70,70,70,1758,1720,1469,1339,1794,1839,1722,1643,1522,1191,4859,5322,5219,2268,29972,29973,29973,29974,29975,29976,29976,29977,29980,29981,29981,29982,29987,29981,29999]} 1. d4 {[%emt 0:00:02]} Nf6 {[%emt 0:01:21]} 2. c4 {[%emt 0:00:03]} e6 {[%emt 0:00:15]} 3. Nf3 {[%emt 0:00:08]} d5 {[%emt 0:00:14]} 4. Nc3 {[%emt 0:00:04]} dxc4 {[%emt 0:00:29]} 5. e4 {[%emt 0:00:36]} Bb4 {[%emt 0:00:26]} 6. Bg5 {[%emt 0:03:15]} c5 {[%emt 0:01:56]} 7. Bxc4 {[%emt 0:00:28]} cxd4 {[%emt 0:01:15]} 8. Nxd4 {[%emt 0:00:06]} Bxc3+ {[%emt 0:00:38]} 9. bxc3 {[%emt 0:00:05]} Qa5 {[%emt 0:01:05]} 10. Bb5+ {[%emt 0:00:14]} Nbd7 {[%emt 0:02:44]} 11. Bxf6 {[%emt 0:00:12]} Qxc3+ {[%emt 0:04:23]} 12. Kf1 {[%emt 0:00:05]} gxf6 {[%emt 0:00:34]} 13. h4 {[%emt 0:00:10]} a6 {[%emt 0:15:11]} 14. Rh3 {[%emt 0:00:29][%mdl 1024] White has compensation. D39: Queen's Gambit Declined: Ragozin Defence with 5 Bg5 dxc4.} Qb4 {[%emt 0:01:14] 14...Qa5 is not played anymore.} 15. Be2 {[%emt 0:05:48]} Qd6 {[%emt 0:08:34]} (15... e5 16. Nf5 Nc5 17. Rb1 $16) 16. Rc1 {[%emt 0:08:21] White is slightly better.} Ne5 {[%emt 0:07:09] Inhibits Rd3.} 17. Rb3 {[%emt 0:08:34] [#]} Nc6 $146 {[%emt 0:11:39]} (17... b5 $11 {keeps the balance.}) ({Predecessor:} 17... b5 18. Qd2 Bb7 19. Rd1 Bxe4 20. Qf4 Bd5 21. Qxf6 Ng6 22. Rg3 Kd7 23. Nf5 exf5 24. Qxf5+ Qe6 25. Rxd5+ Kc7 26. Rc3+ Kb8 27. Rxb5+ {1-0 (27) Borovikov,V (2599)-Drozdovskij,Y (2625) Konya 2010}) 18. Rd3 $1 $16 {[%emt 0:05:56][%cal Bb3d3,Bd3d4,Bd4c4][%mdl 32] Nxc6 is the strong threat.} (18. Nxc6 Qxd1+ 19. Rxd1 (19. Bxd1 bxc6 20. Be2 Ke7 $14) 19... bxc6 $14) 18... Nxd4 {[%emt 0:23:45]} 19. Rxd4 {[%emt 0:00:05]} Qe7 {[%emt 0:05:48]} (19... Qh2 $16 20. Bh5 Qh1+ 21. Ke2 Qxd1+ 22. Rcxd1 (22. Rdxd1 e5 $11) 22... O-O) 20. Qd2 {[%emt 0:16:38]} (20. Rc3 $18) 20... e5 {[%emt 0:02:58]} 21. Rdc4 {[%emt 0:00:23]} Be6 {[%emt 0:04:32]} 22. Rc7 {[%emt 0:01:19]} Qd8 {[%emt 0:00:19]} 23. Qh6 {[%emt 0:04:09] White is much more active. The black rooks are badly placed.} Rc8 {[%emt 0:01:18]} 24. Rxc8 $40 {[%emt 0:00:18][%mdl 128] White mounts an attack.} Bxc8 {[%emt 0:00:07]} 25. Bc4 {[%emt 0:00:05]} Ke7 {[%emt 0:01:10]} (25... Be6 $2 26. Bxe6 fxe6 27. Qg7 $18) 26. Bd5 {[%emt 0:01:39]} Be6 {[%emt 0:01:13]} 27. Bxe6 {[%emt 0:03:04]} Kxe6 $14 {[%emt 0:00:26][%mdl 4096] Endgame KQR-KQR} (27... Qd3+ $1 $14 28. Kg1 Kxe6) 28. Qe3 $18 {[%emt 0:00:28] And now Qb3+ would win.} Qd7 {[%emt 0:02:15]} 29. Qb6+ {[%emt 0:12:59]} Qd6 {[%emt 0:00:09]} 30. Qb3+ {[%emt 0:00:03]} (30. Qxb7 $6 Rb8 31. Qc6 Ke7 $14) 30... Ke7 {[%emt 0:00:09]} 31. Qxb7+ {[%emt 0:00:01]} Kf8 {[%emt 0:00:10]} 32. Qc8+ {[%emt 0:00:23]} (32. Qc6 $142 Qd8 33. Qxa6) 32... Kg7 $16 {[%emt 0:00:10]} 33. Qg4+ {[%emt 0:00:03]} Kh6 {[%emt 0:00:24]} 34. Rd1 {[%emt 0:01:26]} (34. Kg1 $16) 34... Qc6 {[%emt 0:01:00]} ({Black should try} 34... Qb6 $14) 35. Kg1 {[%emt 0:00:17]} Rb8 {[%emt 0:01:43]} 36. Rd3 $1 {[%emt 0:09:52]} Qc1+ {[%emt 0:00:43] [#]} 37. Kh2 $1 {[%emt 0:00:13] Rf3 would kill now.} (37. Rd1 $6 Qc5 $14) 37... Qf4+ {[%emt 0:01:02]} (37... Rb1 38. Rf3 Qc6 39. Rf5) 38. Qxf4+ {[%emt 0:00:01]} exf4 {[%emt 0:00:01] KR-KR} 39. Rd6 {[%emt 0:06:08]} Rb2 {[%emt 0:00:52]} 40. Rxf6+ {[%emt 0:00:00]} ({Don't take} 40. Rxa6 $6 Rxf2 41. Kg1 (41. Rxf6+ Kg7 $14) 41... Re2 $14) 40... Kg7 {[%emt 0:00:00]} 41. Rxf4 {[%emt 0:00:26]} ({Resist} 41. Rxa6 $6 Rxf2 42. Kh3 Re2 $16) 41... Rxa2 {[%emt 0:00:21]} 42. g4 {[%emt 0:00:05]} (42. Rf5 $142) 42... a5 {[%emt 0:02:52]} ({Better is} 42... Ra5) 43. g5 {[%emt 0:04:27]} ({White should play} 43. Kg3) 43... a4 {[%emt 0:00:32]} 44. Kg2 {[%emt 0:09:46]} Re2 $1 {[%emt 0:02:33]} 45. Kf3 {[%emt 0:00:38]} Re1 {[%emt 0:02:27] Strongly threatening ...a3.} 46. Rf6 {[%emt 0:03:22] Threatens to win with h5.} h5 $2 {[%emt 0:03:07][%mdl 8192] Loses the game.} (46... Rh1 $14) 47. Ra6 $18 {[%emt 0:00:17]} Rh1 {[%emt 0:04:28] [#]} 48. Kg3 $1 {[%emt 0:00:18]} Rg1+ {[%emt 0:01:09]} 49. Kf4 {[%emt 0:00:01]} Rg4+ {[%emt 0:01:03]} 50. Kf5 {[%emt 0:01:16]} Rxh4 {[%emt 0:00:37]} 51. Rxa4 {[%emt 0:00:01] White threatens f4 and mate.} Rh1 {[%emt 0:00:51]} 52. Ra7 {[%emt 0:00:17] White wants to mate with g6.} Kg8 {[%emt 0:01:09]} 53. f4 {[%emt 0:01:46]} (53. e5 $142 Rf1 54. f4) 53... Rh4 {[%emt 0:00:57]} 54. e5 {[%emt 0:00:25] White mates.} Rg4 {[%emt 0:00:23]} 55. Ra4 {[%emt 0:02:15]} Kg7 {[%emt 0:00:30]} 56. e6 {[%emt 0:00:26]} fxe6+ {[%emt 0:00:07]} 57. Kxe6 {[%emt 0:00:02]} h4 {[%emt 0:00:58]} 58. Kf5 {[%emt 0:00:05]} Rg1 {[%emt 0:00:14]} 59. Ra7+ {[%emt 0:00:08]} Kg8 {[%emt 0:00:48]} 60. Kg6 {[%emt 0:00:05][%cal Ra7a8]} Rh1 {[%emt 0:01:03] Weighted Error Value: White=0.11 (very precise) /Black=0.31} 1-0

[Event "2nd Serbia Open Masters 2022"]
[Site "Novi Sad"]
[Date "2022.06.30"]
[Round "3.39"]
[White "Andreev, Konstantin"]
[Black "Badelka, Olga"]
[Result "1/2-1/2"]
[ECO "C54"]
[WhiteElo "2238"]
[BlackElo "2453"]
[Annotator "TA"]
[PlyCount "120"]
[EventDate "2022.06.28"]
[EventType "swiss"]
[EventCountry "SRB"]
[SourceTitle "playchess.com"]
[Source "ChessBase"]
[SourceQuality "1"]
[TimeControl "40/5400+30:900+30"]

{[%evp 11,120,16,24,23,17,12,26,22,19,15,21,17,22,29,26,36,15,-21,-29,-25,-1,-37,-27,-34,-15,-13,-7,-16,-18,-13,-27,-27,-29,-28,-28,-29,11,-33,-36,-91,-72,-136,49,-72,-72,-72,-64,-76,-68,-60,-67,-63,-78,-67,-66,-77,-2,-6,-2,-3,-4,-4,-4,-5,-17,-43,-49,-51,-51,-52,-58,-87,-11,-30,-30,-39,-43,-72,-8,-8,-13,-19,0,0,0,0,0,0,67,63,85,79,210,176,169,8,8,0,0,0,0,0,0,0,0,0,0,0,0,0,0]} 1. e4 {[%emt 0:00:02]} e5 {[%emt 0:00:09]} 2. Nf3 {[%emt 0:00:04]} Nc6 {[%emt 0:00:05]} 3. Bc4 {[%emt 0:00:05]} Bc5 {[%emt 0:00:05]} 4. d3 {[%emt 0:00:52]} Nf6 {[%emt 0:00:22]} 5. h3 {[%emt 0:01:12]} d6 {[%emt 0:01:09]} 6. c3 {[%emt 0:00:18]} Bb6 {[%emt 0:00:45]} 7. Bb3 {[%emt 0:00:13] C54: Giuoco Piano: 4 c3 Nf6, main lines with 5 d4 and 5 d3.} h6 {[%emt 0:02:41]} 8. Nbd2 {[%emt 0:00:19][%cal Bb1d2,Bd2f1,Bf1g3][%mdl 32]} Ne7 {[%emt 0:05:00]} 9. Nf1 {[%emt 0:02:30] White has an edge.} Ng6 {[%emt 0:01:46]} 10. Ng3 {[%emt 0:00:26]} O-O {[%emt 0:04:12]} 11. O-O {[%emt 0:01:52]} d5 {[%emt 0:02:31]} 12. exd5 {[%emt 0:02:19]} Nxd5 {[%emt 0:00:56]} 13. Re1 {[%emt 0:02:36]} c6 {[%emt 0:06:18]} 14. Bc2 {[%emt 0:04:19] [#]} f5 $146 {[%emt 0:10:40]} ({Predecessor:} 14... Bc7 15. d4 exd4 16. Nxd4 a6 17. Qf3 Nf6 18. Be3 Ne5 19. Qe2 Nd5 20. Rad1 Bd7 {1-0 (77) Edithso,S (1879)-Shvedova,A (1782) Santiago de Compostela 2018}) 15. Bd2 {[%emt 0:22:28]} Qd6 {[%emt 0:08:07]} 16. Qe2 {[%emt 0:05:48]} Bc7 {[%emt 0:05:00]} 17. Rad1 {[%emt 0:06:02]} Bd7 {[%emt 0:04:59]} 18. c4 {[%emt 0:13:28]} Ndf4 {[%emt 0:01:34]} 19. Bxf4 {[%emt 0:01:22]} exf4 {[%emt 0:00:07]} 20. Nf1 {[%emt 0:00:38]} Ba5 {[%emt 0:07:25] Strongly threatening ...Rfe8.} 21. N1d2 {[%emt 0:04:37]} Rae8 {[%emt 0:00:20]} 22. Qf1 {[%emt 0:00:11]} Rxe1 $1 {[%emt 0:00:19]} 23. Qxe1 {[%emt 0:02:50]} c5 {[%emt 0:01:46] Against d4} (23... Re8 $5 {[%cal Re8e1]} 24. Qf1 Bxd2 25. Rxd2 Ne5 $15) 24. Qf1 {[%emt 0:01:47]} (24. d4 $5) 24... Bxd2 {[%emt 0:13:29]} 25. Nxd2 {[%emt 0:07:34]} (25. Rxd2 $15 Bc6 26. Qd1) 25... Bc6 $17 {[%emt 0:05:34]} 26. b4 {[%emt 0:02:46]} (26. f3 $142) 26... Qd4 $2 {[%emt 0:07:18]} (26... cxb4 $17 {And now ...Re8 would win.} 27. Nb3 f3) 27. Nb3 {[%emt 0:03:35]} (27. b5 $14 Bd7 28. Nf3) 27... Qc3 {[%emt 0:00:48]} 28. b5 {[%emt 0:02:43]} Bxb5 {[%emt 0:03:31]} ({Much worse is} 28... Qxc2 $6 29. bxc6 bxc6 30. Rd2 $11) 29. Rc1 {[%emt 0:02:10]} Ba4 {[%emt 0:01:07]} 30. d4 $1 {[%emt 0:08:54][%cal Oc2f5] Black must now prevent Bxf5!} Bxb3 {[%emt 0:00:06]} (30... cxd4 $2 31. Bxf5 $1 Rxf5 32. Rxc3 dxc3 33. Qd3 $16) 31. Bxf5 {[%emt 0:00:08][%cal Bc2f5,Bf5e6,Be6d5,Bd5e4][%mdl 32] [#]} Qxd4 $1 {[%emt 0:01:19]} 32. Be6+ {[%emt 0:00:40]} Kh8 {[%emt 0:00:20]} 33. axb3 {[%emt 0:00:05]} f3 {[%emt 0:04:56]} (33... b6 $17) 34. g3 $1 $11 {[%emt 0:00:21]} b6 {[%emt 0:00:08]} 35. Bd5 {[%emt 0:00:59]} Ne7 {[%emt 0:00:31]} 36. Rd1 {[%emt 0:00:06]} Qf6 {[%emt 0:01:12]} 37. Be4 {[%emt 0:00:28]} Nf5 {[%emt 0:00:41]} 38. Bb1 {[%emt 0:00:52]} Nd4 $36 {[%emt 0:00:49][%mdl 2048] White is under pressure.} 39. Qd3 {[%emt 0:00:05][%csl Gb1][%cal Rd3h7]} g6 $1 {[%emt 0:00:33]} 40. Qxg6 {[%emt 0:00:00]} Qxg6 {[%emt 0:00:00]} 41. Bxg6 {[%emt 0:01:41]} Nxb3 $15 {[%emt 0:09:21][%mdl 4096] Endgame KRB-KRN} (41... Kg7 $17 42. Be4 Re8) 42. Rd7 {[%emt 0:01:28]} Rf6 {[%emt 0:00:02]} 43. Be4 {[%emt 0:00:36]} a5 {[%emt 0:00:08]} 44. Ra7 {[%emt 0:02:18] [#]} Nd4 {[%emt 0:00:44]} (44... Nd2 $1 $17 {[%cal Rd2e4]} 45. Bd5 Nb3) 45. g4 $1 $11 {[%emt 0:01:12]} Re6 {[%emt 0:05:53]} 46. Bd5 {[%emt 0:13:31]} Re2 {[%emt 0:01:00]} 47. h4 {[%emt 0:00:00]} Re8 {[%emt 0:02:28]} 48. Kh2 {[%emt 0:00:00]} Rf8 $1 {[%emt 0:00:04]} 49. Rb7 {[%emt 0:00:00]} Rf6 {[%emt 0:01:00]} (49... Rf4 $11) 50. Kh3 $1 $14 {[%emt 0:00:51]} a4 {[%emt 0:00:38]} 51. g5 {[%emt 0:00:38]} hxg5 {[%emt 0:00:04]} (51... Rd6 $16) 52. hxg5 $18 {[%emt 0:00:04]} Rd6 {[%emt 0:00:44]} 53. Ra7 $2 {[%emt 0:01:03]} ({White should play} 53. Kg4 $18) 53... b5 $11 {[%emt 0:00:11] The position is equal.} 54. g6 {[%emt 0:00:34]} Rxg6 {[%emt 0:00:18] aiming for ...b4.} 55. cxb5 {[%emt 0:00:13]} Nxb5 {[%emt 0:01:47]} 56. Rxa4 {[%emt 0:00:13]} Nd4 {[%emt 0:00:00]} 57. Ra8+ {[%emt 0:00:10]} Kg7 {[%emt 0:00:00]} 58. Rg8+ {[%emt 0:00:18]} Kf6 {[%emt 0:00:00]} 59. Rxg6+ {[%emt 0:00:04]} Kxg6 {[%emt 0:00:00]} 60. Kg4 {[%emt 0:00:10]} Kf6 {[%emt 0:00:00] Weighted Error Value: White=0.15 (very precise) /Black=0.20 (precise)} 1/2-1/2